[Event "GER-ch Youth U14W 2020"]
[Site "Willingen"]
[Date "2020.10.20"]
[Round "1.1"]
[White "Zhou, Lepu Coco"]
[Black "Ulrich, Helena Irene"]
[Result "1-0"]
[ECO "B30"]
[WhiteElo "1872"]
[BlackElo "1610"]
[Annotator "NA RC"]
[PlyCount "109"]
[EventDate "2020.10.20"]
[EventType "swiss"]
[EventRounds "7"]
[EventCountry "GER"]
[SourceTitle "playchess.com"]
[Source "ChessBase"]
[SourceQuality "1"]
[TimeControl "40/5400+30:1800+30"]

{[%evp 8,109,68,52,32767,32767,32767,32767,53,50,63,54,68,62,54,43,66,60,68,33,80,87,120,96,115,98,95,111,165,166,163,130,141,83,75,32767,21,20,25,32767,32767,8,0,8,5,32767,32767,0,312,337,291,32767,118,133,32767,374,286,385,268,377,611,412,283,275,275,293,32767,32767,32767,32767,32767,322,293,325,313,325,286,306,350,344,319,377,381,514,32767,540,32767,32767,853,32767,12829,660,611,678,693,12837,1561,1310,32767,32767,12837,5716,12839,5306]} 1. e4 {[%emt 0:00:00]} c5 {[%emt 0:00:00]} 2. Nf3 {[%emt 0:00:00]} Nc6 {[%emt 0:00:00]} 3. c4 {[%emt 0:00:00]} e6 {[%emt 0:01:28]} 4. Nc3 {[%emt 0:00:05]} d6 {[%emt 0:02:36]} 5. d4 {[%emt 0:00:09]} cxd4 {[%emt 0:00:16]} 6. Nxd4 {[%emt 0:00:08]} Nf6 {[%emt 0:00:15]} 7. Be3 {[%emt 0:00:22]} Be7 {[%emt 0:01:11]} 8. Be2 {[%emt 0:00:11]} O-O {[%emt 0:00:32]} 9. O-O {[%emt 0:00:34]} Bd7 {[%emt 0:05:48]} 10. Rc1 {[%emt 0:00:54]} Nxd4 {[%emt 0:00:49]} 11. Bxd4 {[%emt 0:00:19]} Bc6 {[%emt 0:00:24]} 12. f3 {[%emt 0:01:33] [#]} a5 $146 {[%emt 0:03:11] B54: Sicilian: 2...d6 3 d4 cxd4 4 Nxd4, Unusual Lines .} ({Predecessor:} 12... Nd7 13. Qd2 a5 14. b3 Qb8 15. Rfd1 Nc5 16. Bf1 Rd8 17. Qf2 b6 18. Nb5 Bf8 19. Qg3 Qb7 20. h4 Bxb5 21. cxb5 {0-1 (62) Schut,H (2101)-Steel,H (2418) chess.com INT 2020}) 13. b3 {[%emt 0:02:30]} Qc7 {[%emt 0:09:50]} 14. Nd5 {[%emt 0:02:02]} Qd8 {[%emt 0:15:31]} 15. Bb6 {[%emt 0:02:46]} Qd7 {[%emt 0:00:51]} 16. Nxe7+ {[%emt 0:00:59]} Qxe7 {[%emt 0:00:06]} 17. Qd2 {[%emt 0:00:08]} a4 {[%emt 0:06:50]} (17... Rfe8 $16) 18. b4 {[%emt 0:00:37]} Rfc8 {[%emt 0:12:17]} 19. Rfd1 {[%emt 0:02:10]} d5 {[%emt 0:18:05]} 20. b5 {[%emt 0:02:40]} Be8 {[%emt 0:00:11]} 21. cxd5 {[%emt 0:00:29]} exd5 {[%emt 0:00:14]} 22. exd5 {[%emt 0:02:41]} Nxd5 {[%emt 0:03:37]} 23. Bd4 {[%emt 0:05:13]} Nc7 {[%emt 0:03:33]} 24. b6 {[%emt 0:16:08]} Ne6 {[%emt 0:01:55]} 25. Bf2 {[%emt 0:02:13]} Rxc1 {[%emt 0:02:06]} 26. Rxc1 {[%emt 0:02:36]} Rd8 {[%emt 0:01:01]} 27. Qe3 {[%emt 0:01:02]} Qg5 $2 {[%emt 0:06:47]} (27... Bc6 $11) 28. Qxg5 {[%emt 0:00:49]} Nxg5 {[%emt 0:00:04]} 29. Be3 {[%emt 0:02:29]} Ne6 {[%emt 0:00:31] [#]} 30. f4 $1 {[%emt 0:01:10]} h6 {[%emt 0:02:50]} 31. f5 {[%emt 0:00:32]} Nd4 {[%emt 0:00:28]} 32. Bxd4 $1 {[%emt 0:01:11]} Rxd4 {[%emt 0:00:05]} 33. Rc8 {[%emt 0:00:08]} Re4 {[%emt 0:01:41]} 34. Bb5 {[%emt 0:00:11]} Kf8 {[%emt 0:00:08] [#]} 35. Bc6 $1 {[%emt 0:01:11]} bxc6 {[%emt 0:01:40]} 36. b7 {[%emt 0:00:11]} Rb4 {[%emt 0:00:01]} 37. b8=Q {[%emt 0:00:19]} Rxb8 {[%emt 0:00:05]} 38. Rxb8 {[%emt 0:00:05]} Ke7 {[%emt 0:00:27]} 39. Rb4 {[%emt 0:00:27]} c5 {[%emt 0:00:25]} 40. Re4+ {[%emt 0:00:07]} Kd8 {[%emt 0:00:42]} 41. Re5 {[%emt 0:30:07]} c4 42. Rc5 {[%emt 0:00:18]} Ke7 {[%emt 0:02:40]} 43. Rxc4 {[%emt 0:00:00]} Kd6 {[%emt 0:05:09]} 44. Re4 {[%emt 0:00:00]} Bc6 {[%emt 0:01:05]} 45. Rg4 {[%emt 0:00:00]} Ke5 {[%emt 0:07:43]} 46. Rxg7 {[%emt 0:00:00]} Kxf5 {[%emt 0:01:39]} 47. Rxf7+ {[%emt 0:00:00]} Kg5 {[%emt 0:01:15]} 48. Rc7 {[%emt 0:00:00]} Be8 {[%emt 0:00:38]} 49. Rc4 {[%emt 0:00:00]} h5 {[%emt 0:06:12]} (49... Kf6 $142 50. Kf2 Ke5) 50. Kf2 {[%emt 0:00:00]} Kg6 {[%emt 0:01:07]} 51. Kg3 {[%emt 0:00:00]} Kg5 {[%emt 0:00:50]} 52. Rc5+ {[%emt 0:00:00]} Kg6 {[%emt 0:00:11]} 53. Kf4 {[%emt 0:00:00]} Kf6 {[%emt 0:00:58]} 54. Ra5 $18 {[%emt 0:00:00]} Kg6 {[%emt 0:00:41]} 55. Ra6+ {[%emt 0:00:00]} 1-0

[Event "GER-ch Youth U14W 2020"]
[Site "Willingen"]
[Date "2020.10.20"]
[Round "1.2"]
[White "Zöllner, Bente"]
[Black "Bildat, Emilia"]
[Result "0-1"]
[ECO "A46"]
[WhiteElo "1630"]
[BlackElo "1704"]
[Annotator "NA RC"]
[PlyCount "108"]
[EventDate "2020.10.20"]
[EventType "swiss"]
[EventRounds "7"]
[EventCountry "GER"]
[SourceTitle "playchess.com"]
[Source "ChessBase"]
[SourceQuality "1"]
[TimeControl "40/5400+30:1800+30"]

1. d4 {[%emt 0:00:00]} Nf6 {[%emt 0:00:00]} 2. Nf3 {[%emt 0:00:00]} e6 {[%emt 0:00:02]} 3. Bg5 {[%emt 0:00:08]} Be7 {[%emt 0:01:43]} 4. e3 {[%emt 0:01:49]} c5 {[%emt 0:02:31]} 5. Nbd2 {[%emt 0:06:37]} O-O {[%emt 0:03:37]} 6. Bd3 {[%emt 0:02:18]} Nc6 {[%emt 0:00:51]} 7. O-O {[%emt 0:01:52]} d5 {[%emt 0:02:34]} 8. c4 {[%emt 0:06:56]} dxc4 {[%emt 0:07:09]} 9. Nxc4 {[%emt 0:01:32]} cxd4 {[%emt 0:02:33]} 10. exd4 {[%emt 0:05:13]} Nd5 {[%emt 0:02:37]} 11. Bxe7 {[%emt 0:02:36]} Qxe7 {[%emt 0:01:19]} 12. Ne3 {[%emt 0:05:47]} Rd8 {[%emt 0:12:26]} 13. Nxd5 {[%emt 0:05:15]} Rxd5 {[%emt 0:00:20]} 14. Be4 {[%emt 0:03:18]} Rd6 {[%emt 0:02:03]} 15. Qd3 {[%emt 0:04:51]} g6 {[%emt 0:03:32]} 16. Rfd1 {[%emt 0:03:29]} Nb4 {[%emt 0:03:45]} 17. Qc4 {[%emt 0:02:30]} Nd5 {[%emt 0:00:32]} 18. Ne5 {[%emt 0:04:05]} b6 {[%emt 0:07:04]} 19. Bxd5 {[%emt 0:05:14]} Rxd5 {[%emt 0:01:01]} 20. Rac1 {[%emt 0:02:12]} f6 {[%emt 0:05:45]} 21. Ng4 {[%emt 0:02:32]} Bd7 {[%emt 0:05:43]} 22. Ne3 {[%emt 0:02:56]} Rd6 {[%emt 0:03:05]} 23. d5 {[%emt 0:03:31]} Rc8 {[%emt 0:03:28]} 24. Qb3 {[%emt 0:03:52]} Rxc1 {[%emt 0:04:30]} 25. Rxc1 {[%emt 0:00:25]} exd5 {[%emt 0:01:27]} 26. Nxd5 {[%emt 0:01:44]} Qf7 {[%emt 0:00:45]} 27. Rd1 {[%emt 0:03:38]} Be6 {[%emt 0:03:12]} 28. Nxf6+ {[%emt 0:04:00]} Kh8 {[%emt 0:03:37]} 29. Nd5 {[%emt 0:05:24]} Rxd5 {[%emt 0:01:37]} 30. Qc3+ {[%emt 0:01:27]} Kg8 {[%emt 0:01:38]} 31. Re1 {[%emt 0:00:44]} Qd7 {[%emt 0:01:59]} 32. Qc1 {[%emt 0:02:38]} Rd2 {[%emt 0:04:39]} 33. Qc3 {[%emt 0:04:54]} Qd4 {[%emt 0:03:15]} 34. Qf3 {[%emt 0:01:03]} Qd5 {[%emt 0:01:21]} 35. Qe3 {[%emt 0:00:44]} Rd1 {[%emt 0:00:46]} 36. h3 {[%emt 0:00:41]} Rxe1+ {[%emt 0:01:12]} 37. Qxe1 {[%emt 0:00:07]} Kf7 {[%emt 0:01:18]} 38. a3 {[%emt 0:00:14]} Qd4 {[%emt 0:00:20]} 39. Qe2 {[%emt 0:00:37]} Qd5 {[%emt 0:02:22]} 40. Qe3 {[%emt 0:00:46]} Qd1+ {[%emt 0:00:18]} 41. Kh2 {[%emt 0:30:20]} Qd5 {[%emt 0:02:38]} 42. Qf4+ {[%emt 0:00:00]} Ke7 {[%emt 0:00:51]} 43. Qe3 {[%emt 0:00:00]} Kd6 {[%emt 0:01:02]} 44. g3 {[%emt 0:00:00]} Qf5 {[%emt 0:02:26]} 45. Qd2+ {[%emt 0:00:00]} Kc6 {[%emt 0:01:07]} 46. g4 {[%emt 0:00:00]} Qf3 {[%emt 0:02:53]} 47. Qe1 {[%emt 0:00:00]} Bd5 {[%emt 0:01:35]} 48. Qf1 {[%emt 0:00:00]} Qf4+ {[%emt 0:03:01]} 49. Kg1 {[%emt 0:00:00]} Qd2 {[%emt 0:00:33]} 50. b4 {[%emt 0:00:00]} Qb2 {[%emt 0:01:57]} 51. Qa6 {[%emt 0:00:00]} Qc1+ {[%emt 0:01:30]} 52. Kh2 {[%emt 0:00:00]} Qh1+ {[%emt 0:01:05]} 53. Kg3 {[%emt 0:00:00]} Qf3+ {[%emt 0:01:16]} 54. Kh4 {[%emt 0:00:00]} Qxf2+ {[%emt 0:01:08]} 0-1

[Event "GER-ch Youth U14W 2020"]
[Site "Willingen"]
[Date "2020.10.20"]
[Round "1.3"]
[White "Wagner, Margarethe"]
[Black "Deák-Sala, Emília"]
[Result "1-0"]
[ECO "B32"]
[WhiteElo "1804"]
[BlackElo "1641"]
[Annotator "NA RC"]
[PlyCount "101"]
[EventDate "2020.10.20"]
[EventType "swiss"]
[EventRounds "7"]
[EventCountry "GER"]
[SourceTitle "playchess.com"]
[Source "ChessBase"]
[SourceQuality "1"]
[TimeControl "40/5400+30:1800+30"]

{[%evp 9,91,42,57,50,58,52,47,18,30,21,39,38,49,38,47,0,33,8,19,20,28,5,32767,32767,-9,-64,32767,-73,-66,-50,32767,-25,-14,-32,-91,-35,33,62,52,52,56,52,94,56,56,32767,63,2,58,43,248,79,32767,417,397,409,32767,32767,431,412,398,421,417,428,32767,32767,32767,0,468,0,446,435,452,428,497,494,564,641,593,32767,32767,32767,600,605]} 1. e4 {[%emt 0:00:00]} c5 {[%emt 0:00:00]} 2. Nf3 {[%emt 0:00:00]} Nc6 {[%emt 0:00:00]} 3. d4 {[%emt 0:00:00]} cxd4 {[%emt 0:00:00]} 4. Nxd4 {[%emt 0:00:00]} Qb6 {[%emt 0:00:00]} 5. Nb3 {[%emt 0:03:41]} Nf6 {[%emt 0:00:00]} 6. Nc3 {[%emt 0:01:50]} e6 {[%emt 0:00:00]} 7. a3 {[%emt 0:03:02]} Be7 {[%emt 0:15:36]} 8. Be2 {[%emt 0:03:40] B33: Sicilian: Pelikan and Sveshnikov Variations.} Qc7 {[%emt 0:03:12]} 9. O-O {[%emt 0:03:55] [#]} b6 $146 {[%emt 0:02:48]} ({Predecessor:} 9... O-O 10. Be3 d5 11. exd5 Rd8 12. Nb5 Qe5 13. d6 Bxd6 14. Nxd6 Rxd6 15. Qc1 Nd5 {1-0 (26) Lewicki,M (2361)-Ludishev,A (1714) Krakow 2018}) 10. f4 {[%emt 0:03:03]} O-O {[%emt 0:08:49]} 11. e5 {[%emt 0:15:28]} Ne8 {[%emt 0:00:39]} 12. Bf3 {[%emt 0:00:46]} (12. Nb5 $5 {[%cal Rb5c7]} Qd8 13. Qd3 $14) 12... Bb7 {[%emt 0:04:00]} 13. Qe2 {[%emt 0:06:02]} f6 {[%emt 0:04:24]} 14. Nb5 {[%emt 0:05:24]} Qb8 {[%emt 0:02:03]} 15. Rd1 {[%emt 0:03:26]} a6 {[%emt 0:17:10]} 16. Nc3 {[%emt 0:08:08]} Qc7 {[%emt 0:02:01]} 17. Kh1 {[%emt 0:03:31]} ({Better is} 17. exf6 $11 Nxf6 18. Be3) 17... Rb8 {[%emt 0:06:51]} 18. Re1 {[%emt 0:06:26]} (18. Qd3 $11 {keeps the balance.}) 18... fxe5 {[%emt 0:01:54]} 19. fxe5 {[%emt 0:00:11]} Bh4 {[%emt 0:01:26]} 20. Rf1 $1 {[%emt 0:08:36]} Nxe5 {[%emt 0:01:32]} 21. Bxb7 {[%emt 0:00:29]} Rxf1+ {[%emt 0:02:10]} ({Much worse is} 21... Rxb7 $6 22. Rxf8+ Kxf8 23. Bf4 $14) 22. Qxf1 {[%emt 0:00:04]} Ng4 {[%emt 0:02:47]} (22... Rxb7 $15 23. Bf4 Bf6) 23. Bf4 {[%emt 0:02:36]} Qxb7 {[%emt 0:12:49]} 24. Bxb8 Qxb8 {[%emt 0:01:13]} 25. g3 {[%emt 0:03:10]} Nef6 {[%emt 0:05:42] [#]} 26. Qf3 {[%emt 0:08:13]} ({Don't play} 26. Qxa6 $6 Nxh2 27. gxh4 Nf3 $11) (26. Nd2 $1 $16) 26... Bg5 {[%emt 0:01:54]} 27. Re1 {[%emt 0:00:54]} Ne5 {[%emt 0:01:00]} 28. Qg2 {[%emt 0:01:35]} ({Better is} 28. Qe2 $14 Qb7+ 29. Qg2 Qxg2+ 30. Kxg2) 28... Nfg4 {[%emt 0:00:19]} 29. Nd1 {[%emt 0:01:16]} Qf8 $2 {[%emt 0:00:54] [#]} (29... Nf6 $14) 30. Nd4 {[%emt 0:00:53]} (30. h3 $1 $18) 30... h6 {[%emt 0:01:26]} 31. h3 {[%emt 0:00:29]} Qc5 {[%emt 0:00:15]} 32. Nb3 {[%emt 0:01:09]} ({Not} 32. hxg4 Qxd4 33. Qe4 Qxe4+ 34. Rxe4 Bf6 $11) 32... Qd6 {[%emt 0:01:33]} 33. hxg4 {[%emt 0:00:45]} Nxg4 {[%emt 0:00:20]} 34. Qf3 {[%emt 0:01:02]} Ne5 {[%emt 0:00:21]} 35. Qe4 {[%emt 0:00:41]} ({Don't play} 35. Qa8+ Kf7 $18) 35... Nc6 {[%emt 0:00:33]} 36. Kg2 {[%emt 0:00:51]} a5 {[%emt 0:00:13]} 37. Qd3 {[%emt 0:01:05]} Qc7 {[%emt 0:00:26]} 38. Qe4 {[%emt 0:02:50]} Qd6 {[%emt 0:00:20]} 39. Qd3 $2 {[%emt 0:01:21]} ({White should try} 39. Nf2 $18) 39... Qc7 $1 {[%emt 0:00:05]} 40. Nf2 {[%emt 0:00:34]} Bf6 {[%emt 0:01:47]} 41. c3 {[%emt 0:31:28]} Ne5 {[%emt 0:31:01]} 42. Qe4 {[%emt 0:00:00]} Nc4 {[%emt 0:00:00]} 43. Ng4 {[%emt 0:00:00]} Bg5 {[%emt 0:00:00]} 44. Re2 {[%emt 0:00:00]} Nd6 {[%emt 0:00:00]} 45. Qf3 {[%emt 0:00:00]} Nf5 $18 {[%emt 0:00:00]} 46. Nd4 {[%emt 0:00:00]} Nd6 {[%emt 0:00:00]} 47. Rf2 {[%emt 0:00:00]} Nc4 {[%emt 0:00:00]} 48. Qf8+ {[%emt 0:00:00]} Kh7 {[%emt 0:00:00]} 49. Rf7 {[%emt 0:00:00]} Kg6 {[%emt 0:00:00]} 50. Rxg7+ {[%emt 0:00:00]} Kh5 {[%emt 0:00:00]} 51. Nf6+ {[%emt 0:00:00]} 1-0

[Event "GER-ch Youth U14W 2020"]
[Site "Willingen"]
[Date "2020.10.20"]
[Round "1.4"]
[White "Lorenz, Anouk"]
[Black "Sereda, Yaroslava"]
[Result "0-1"]
[ECO "B39"]
[WhiteElo "1504"]
[BlackElo "1756"]
[Annotator "NA RC"]
[PlyCount "178"]
[EventDate "2020.10.20"]
[EventType "swiss"]
[EventRounds "7"]
[EventCountry "GER"]
[SourceTitle "playchess.com"]
[Source "ChessBase"]
[SourceQuality "1"]
[TimeControl "40/5400+30:1800+30"]

1. e4 {[%emt 0:00:00]} c5 {[%emt 0:00:00]} 2. Nf3 {[%emt 0:00:00]} Nc6 {[%emt 0:00:00]} 3. d4 {[%emt 0:00:00]} cxd4 {[%emt 0:00:07]} 4. Nxd4 {[%emt 0:00:00]} g6 {[%emt 0:00:09]} 5. c4 {[%emt 0:00:05]} Bg7 {[%emt 0:00:15]} 6. Be3 {[%emt 0:00:09]} Nf6 {[%emt 0:00:12]} 7. Nc3 {[%emt 0:00:18]} Ng4 {[%emt 0:00:18]} 8. Qxg4 {[%emt 0:00:10]} Nxd4 {[%emt 0:00:06]} 9. Qd1 {[%emt 0:00:14]} Ne6 {[%emt 0:00:37]} 10. Rc1 {[%emt 0:00:41]} a5 {[%emt 0:04:45]} 11. Qd2 {[%emt 0:01:51]} b6 {[%emt 0:06:16]} 12. Bd3 {[%emt 0:02:22]} O-O {[%emt 0:03:26]} 13. Bb1 {[%emt 0:04:01]} d6 {[%emt 0:05:25]} 14. O-O {[%emt 0:02:06]} Nc5 {[%emt 0:02:42]} 15. Rfd1 {[%emt 0:16:31]} Bb7 {[%emt 0:14:02]} 16. f3 {[%emt 0:02:44]} Rc8 {[%emt 0:01:56]} 17. b3 {[%emt 0:07:43]} Bc6 {[%emt 0:06:31]} 18. Qe2 {[%emt 0:21:53]} Bd7 {[%emt 0:05:59]} 19. Nd5 {[%emt 0:09:26]} Be6 {[%emt 0:10:05]} 20. Kh1 {[%emt 0:07:28]} Bxd5 {[%emt 0:02:39]} 21. Rxd5 {[%emt 0:01:17]} Qd7 {[%emt 0:09:08]} 22. Rcd1 {[%emt 0:07:04]} Qe6 {[%emt 0:00:28]} 23. Qe1 {[%emt 0:06:56]} Rc6 {[%emt 0:05:52]} 24. Bf4 {[%emt 0:03:06]} Nd7 {[%emt 0:01:54]} 25. Bg3 {[%emt 0:00:46]} Nf6 {[%emt 0:00:41]} 26. R5d2 {[%emt 0:01:05]} Nh5 {[%emt 0:00:42]} 27. Bf2 {[%emt 0:00:44]} Bc3 {[%emt 0:00:47]} 28. Bd4 {[%emt 0:01:26]} Bxd2 {[%emt 0:00:59]} 29. Qxd2 {[%emt 0:00:06]} f6 {[%emt 0:05:12]} 30. g4 {[%emt 0:00:55]} Ng7 {[%emt 0:00:31]} 31. Qh6 {[%emt 0:00:16]} Qf7 {[%emt 0:01:36]} 32. a3 {[%emt 0:02:14]} Ne6 {[%emt 0:00:21]} 33. Be3 {[%emt 0:00:10]} Qg7 {[%emt 0:03:12]} 34. Qh4 {[%emt 0:00:22]} g5 {[%emt 0:01:08]} 35. Qf2 {[%emt 0:00:51]} Nc5 {[%emt 0:01:12]} 36. Bc2 {[%emt 0:00:53]} Kh8 {[%emt 0:03:56]} 37. a4 {[%emt 0:00:48]} Qf7 {[%emt 0:02:28]} 38. Bxc5 {[%emt 0:00:42]} bxc5 {[%emt 0:00:40]} 39. h3 {[%emt 0:00:25]} h5 {[%emt 0:01:10]} 40. Kg2 {[%emt 0:00:37]} Kg7 {[%emt 0:01:03]} 41. Rh1 {[%emt 0:31:12]} Rh8 {[%emt 0:30:48]} 42. Qe1 {[%emt 0:00:41]} Qe6 {[%emt 0:00:51]} 43. Qd1 {[%emt 0:00:00]} Qe5 {[%emt 0:00:00]} 44. Qd3 {[%emt 0:00:00]} Rcc8 {[%emt 0:00:00]} 45. Qd1 {[%emt 0:00:00]} Rb8 {[%emt 0:00:00]} 46. Qd3 {[%emt 0:00:00]} Rh6 {[%emt 0:00:00]} 47. Qd2 {[%emt 0:00:00]} Rb4 {[%emt 0:00:00]} 48. Qd3 {[%emt 0:00:00]} Qf4 {[%emt 0:00:00]} 49. Qd1 {[%emt 0:00:00]} Qe3 {[%emt 0:00:00]} 50. Re1 {[%emt 0:00:00]} Qc3 {[%emt 0:00:06]} 51. Re2 {[%emt 0:01:51]} Rb8 {[%emt 0:01:02]} 52. Qd2 {[%emt 0:01:41]} Qxd2 {[%emt 0:02:24]} 53. Rxd2 {[%emt 0:00:03]} Rbh8 {[%emt 0:00:24]} 54. Rd3 {[%emt 0:00:39]} Kf7 {[%emt 0:00:28]} 55. Bd1 {[%emt 0:01:55]} hxg4 {[%emt 0:00:42]} 56. fxg4 {[%emt 0:00:06]} Ke6 {[%emt 0:00:22]} 57. Bc2 {[%emt 0:00:36]} Ke5 {[%emt 0:00:57]} 58. Rf3 {[%emt 0:00:16]} e6 {[%emt 0:00:23]} 59. Rg3 {[%emt 0:00:36]} Rd8 {[%emt 0:00:40]} 60. Rd3 {[%emt 0:00:36]} Rhh8 {[%emt 0:00:38]} 61. Rd2 {[%emt 0:00:44]} d5 {[%emt 0:00:34]} 62. exd5 {[%emt 0:00:16]} exd5 {[%emt 0:00:07]} 63. Re2+ {[%emt 0:00:55]} Kd4 {[%emt 0:00:16]} 64. cxd5 {[%emt 0:00:20]} Rxd5 {[%emt 0:00:30]} 65. Rd2+ {[%emt 0:00:11]} Ke5 {[%emt 0:00:10]} 66. Re2+ {[%emt 0:00:11]} Kd6 {[%emt 0:00:15]} 67. Bf5 {[%emt 0:01:05]} Re5 {[%emt 0:00:32]} 68. Rd2+ {[%emt 0:00:16]} Kc6 {[%emt 0:00:15]} 69. Bd7+ {[%emt 0:00:27]} Kc7 {[%emt 0:00:08]} 70. Bb5 {[%emt 0:00:20]} Rd8 {[%emt 0:00:37]} 71. Rf2 {[%emt 0:00:22]} Rd6 {[%emt 0:00:33]} 72. Rc2 {[%emt 0:00:57]} Kb6 {[%emt 0:00:33]} 73. Rf2 {[%emt 0:00:34]} Red5 {[%emt 0:00:35]} 74. Kg3 {[%emt 0:00:29]} Rd2 {[%emt 0:00:23]} 75. Rf3 {[%emt 0:00:47]} Kc7 {[%emt 0:00:59]} 76. Rf1 {[%emt 0:00:36]} Re6 {[%emt 0:00:26]} 77. Rf3 {[%emt 0:00:32]} Kd8 {[%emt 0:00:55]} 78. Bc4 {[%emt 0:00:41]} Red6 {[%emt 0:01:00]} 79. Rf5 {[%emt 0:00:23]} Rc6 {[%emt 0:01:00]} 80. Bb5 {[%emt 0:00:12]} Re6 {[%emt 0:00:16]} 81. Bc4 {[%emt 0:00:23]} Re3+ {[%emt 0:00:10]} 82. Rf3 {[%emt 0:00:14]} Rxf3+ {[%emt 0:00:19]} 83. Kxf3 {[%emt 0:00:05]} Rd4 {[%emt 0:00:12]} 84. Ke3 {[%emt 0:00:38]} Ke7 {[%emt 0:00:14]} 85. Kf3 {[%emt 0:00:30]} Kd6 {[%emt 0:00:09]} 86. Ke2 {[%emt 0:00:21]} Ke5 {[%emt 0:00:42]} 87. Ke3 {[%emt 0:00:19]} Re4+ {[%emt 0:00:32]} 88. Kf3 {[%emt 0:00:32]} Rxc4 {[%emt 0:00:47]} 89. bxc4 {[%emt 0:00:06]} Kd4 {[%emt 0:00:04]} 0-1

[Event "GER-ch Youth U14W 2020"]
[Site "Willingen"]
[Date "2020.10.20"]
[Round "1.5"]
[White "Voigt, Anastasia"]
[Black "Petersen, Sophie"]
[Result "1-0"]
[ECO "B90"]
[WhiteElo "1562"]
[BlackElo "1524"]
[Annotator "NA RC"]
[PlyCount "61"]
[EventDate "2020.10.20"]
[EventType "swiss"]
[EventRounds "7"]
[EventCountry "GER"]
[SourceTitle "playchess.com"]
[Source "ChessBase"]
[SourceQuality "1"]
[TimeControl "40/5400+30:1800+30"]

1. e4 {[%emt 0:00:00]} c5 {[%emt 0:00:00]} 2. Nf3 {[%emt 0:00:00]} d6 {[%emt 0:00:00]} 3. d4 {[%emt 0:00:00]} cxd4 {[%emt 0:00:00]} 4. Nxd4 {[%emt 0:00:07]} Nf6 {[%emt 0:00:07]} 5. Nc3 {[%emt 0:00:06]} a6 {[%emt 0:00:08]} 6. Bd3 {[%emt 0:00:58]} e5 {[%emt 0:01:14]} 7. Nde2 {[%emt 0:00:06]} Be7 {[%emt 0:01:34]} 8. Ng3 {[%emt 0:00:36]} Be6 {[%emt 0:02:33]} 9. O-O {[%emt 0:01:03]} Nbd7 {[%emt 0:03:50]} 10. Re1 {[%emt 0:16:50]} O-O {[%emt 0:06:33]} 11. Nd5 {[%emt 0:00:30]} Nb6 {[%emt 0:10:43]} 12. c4 {[%emt 0:02:53]} Nbxd5 {[%emt 0:05:15]} 13. exd5 {[%emt 0:03:51]} Bc8 {[%emt 0:04:24]} 14. Nf5 {[%emt 0:05:44]} Bxf5 {[%emt 0:06:25]} 15. Bxf5 {[%emt 0:00:17]} Qc7 {[%emt 0:00:50]} 16. b3 {[%emt 0:01:35]} Rfe8 {[%emt 0:02:22]} 17. Be3 {[%emt 0:10:38]} g6 {[%emt 0:04:26]} 18. Bd3 {[%emt 0:01:42]} Bf8 {[%emt 0:01:21]} 19. b4 {[%emt 0:01:04]} b6 {[%emt 0:03:10]} 20. Rc1 {[%emt 0:03:29]} Rab8 {[%emt 0:05:55]} 21. Qa4 {[%emt 0:01:09]} a5 {[%emt 0:09:21]} 22. a3 {[%emt 0:03:00]} Qd7 {[%emt 0:05:19]} 23. Bc2 {[%emt 0:06:03]} Rec8 {[%emt 0:02:21]} 24. Qxd7 {[%emt 0:02:35]} Nxd7 {[%emt 0:00:16]} 25. Ba4 {[%emt 0:00:33]} Nf6 {[%emt 0:01:42]} 26. Bc6 {[%emt 0:00:36]} Kg7 {[%emt 0:04:00]} 27. bxa5 {[%emt 0:00:38]} bxa5 {[%emt 0:01:14]} 28. Bd2 {[%emt 0:00:45]} Ng8 {[%emt 0:03:10]} 29. Bxa5 {[%emt 0:01:22]} Ne7 {[%emt 0:00:33]} 30. Bd7 {[%emt 0:00:56]} Rc5 {[%emt 0:07:05]} 31. Bb4 {[%emt 0:00:17]} 1-0

[Event "GER-ch Youth U14W 2020"]
[Site "Willingen"]
[Date "2020.10.20"]
[Round "1.6"]
[White "Hubert, Charlotte"]
[Black "Becker, Linda"]
[Result "1/2-1/2"]
[ECO "C09"]
[WhiteElo "1438"]
[BlackElo "1767"]
[Annotator "NA RC"]
[PlyCount "110"]
[EventDate "2020.10.20"]
[EventType "swiss"]
[EventRounds "7"]
[EventCountry "GER"]
[SourceTitle "playchess.com"]
[Source "ChessBase"]
[SourceQuality "1"]
[TimeControl "40/5400+30:1800+30"]

1. e4 {[%emt 0:00:00]} e6 {[%emt 0:00:00]} 2. d4 {[%emt 0:00:00]} d5 {[%emt 0:00:00]} 3. Nd2 {[%emt 0:00:36]} c5 {[%emt 0:00:03]} 4. exd5 {[%emt 0:00:31]} exd5 {[%emt 0:00:17]} 5. Ngf3 {[%emt 0:00:52]} Nc6 {[%emt 0:00:26]} 6. Bb5 {[%emt 0:00:41]} cxd4 {[%emt 0:00:31]} 7. Nxd4 {[%emt 0:02:55]} Bd7 {[%emt 0:00:55]} 8. Nxc6 {[%emt 0:04:14]} bxc6 {[%emt 0:00:32]} 9. Bd3 {[%emt 0:01:28]} Bd6 {[%emt 0:03:02]} 10. O-O {[%emt 0:02:43]} Ne7 {[%emt 0:01:41]} 11. Nf3 {[%emt 0:05:05]} O-O {[%emt 0:02:13]} 12. c4 {[%emt 0:09:00]} a5 {[%emt 0:05:57]} 13. Qc2 {[%emt 0:11:02]} Ng6 {[%emt 0:03:54]} 14. Bg5 {[%emt 0:08:00]} Qb8 {[%emt 0:05:08]} 15. h4 {[%emt 0:12:40]} Bg4 {[%emt 0:06:29]} 16. c5 {[%emt 0:08:22]} Bf4 {[%emt 0:08:36]} 17. Nd4 {[%emt 0:10:54]} Bxg5 {[%emt 0:13:01]} 18. hxg5 {[%emt 0:00:47]} Qf4 {[%emt 0:01:56]} 19. Nxc6 {[%emt 0:02:31]} Qxg5 {[%emt 0:03:38]} 20. Nd4 {[%emt 0:14:06]} Bh3 {[%emt 0:08:02]} 21. f4 {[%emt 0:02:13]} Nxf4 {[%emt 0:03:40]} 22. Qd2 {[%emt 0:00:45]} Bf5 {[%emt 0:08:03]} 23. Qxf4 {[%emt 0:01:12]} Qxf4 {[%emt 0:00:12]} 24. Rxf4 {[%emt 0:00:04]} Bxd3 {[%emt 0:00:09]} 25. Rc1 {[%emt 0:00:54]} Rfe8 {[%emt 0:03:54]} 26. Rc3 {[%emt 0:00:34]} Re4 {[%emt 0:07:22]} 27. Rxe4 {[%emt 0:00:11]} dxe4 {[%emt 0:00:08]} 28. c6 {[%emt 0:00:37]} Re8 {[%emt 0:03:06]} 29. c7 {[%emt 0:00:27]} Ba6 {[%emt 0:00:11]} 30. Nf5 {[%emt 0:00:38]} e3 {[%emt 0:03:20]} 31. Rxe3 {[%emt 0:00:23]} Rxe3 {[%emt 0:00:11]} 32. Nxe3 {[%emt 0:00:05]} Kf8 {[%emt 0:03:09]} 33. Nf5 {[%emt 0:00:32]} Ke8 {[%emt 0:00:28]} 34. Nd6+ {[%emt 0:01:18]} Kd7 {[%emt 0:00:13]} 35. Nxf7 {[%emt 0:00:14]} Kxc7 {[%emt 0:00:54]} 36. Ng5 {[%emt 0:00:12]} Bc4 {[%emt 0:00:41]} 37. b3 {[%emt 0:00:25]} Bg8 {[%emt 0:00:11]} 38. Kf2 {[%emt 0:00:23]} h6 {[%emt 0:00:42]} 39. Ne4 {[%emt 0:00:05]} Kc6 {[%emt 0:01:05]} 40. Ke3 {[%emt 0:00:23]} Bd5 {[%emt 0:01:16]} 41. g4 {[%emt 0:02:18]} Be6 {[%emt 0:04:56]} 42. Kf4 {[%emt 0:05:49]} Kd5 {[%emt 0:03:06]} 43. Nc3+ {[%emt 0:07:36]} Kc5 {[%emt 0:00:45]} 44. Na4+ {[%emt 0:04:58]} Kb4 {[%emt 0:00:44]} 45. Nb6 {[%emt 0:02:32]} Ka3 {[%emt 0:01:45]} 46. Nc4+ {[%emt 0:01:54]} Kxa2 {[%emt 0:04:54]} 47. Nxa5 {[%emt 0:00:20]} g5+ {[%emt 0:02:51]} 48. Kg3 {[%emt 0:00:50]} Ka3 {[%emt 0:03:15]} 49. Nc6 {[%emt 0:01:41]} Bxb3 {[%emt 0:00:32]} 50. Nd4 {[%emt 0:01:00]} Bd1 {[%emt 0:01:11]} 51. Nf5 {[%emt 0:00:30]} h5 {[%emt 0:00:39]} 52. gxh5 {[%emt 0:00:11]} Bxh5 {[%emt 0:00:09]} 53. Ng7 {[%emt 0:00:21]} Bd1 {[%emt 0:00:13]} 54. Ne6 {[%emt 0:00:13]} g4 {[%emt 0:00:09]} 55. Nf4 {[%emt 0:00:25]} Bf3 {[%emt 0:00:24]} 1/2-1/2